fUST/lending_fUST_20260101
["ID","MTS","AMOUNT","RATE_DAILY","PERIOD"]
[400273445,1767249038185,-188.67079587,0.00012094,2]
[400273446,1767249038192,-226.32124086,0.00012094,2]
[400273447,1767249038199,-150.0,0.00012095,2]
[400273448,1767249038206,-255.17052889,0.00012279,2]
[400273449,1767249038214,-1364.38,0.00012329,2]
[400273450,1767249038221,-1136.99,0.00012329,2]
[400273451,1767249038228,-947.49,0.00012329,2]
[400273452,1767249038234,-789.57,0.00012329,2]
[400273453,1767249038241,-657.98,0.00012329,2]
[400273454,1767249038250,-548.31,0.00012329,2]
[400273455,1767249038260,-456.93,0.00012329,2]
[400273456,1767249038267,-380.77,0.00012329,2]
[400273457,1767249038275,-317.31,0.00012329,2]
[400273458,1767249038281,-317.31,0.00012329,2]
[400273459,1767249038288,-211.54,0.00012329,2]
[400273460,1767249038297,-176.29,0.00012329,2]
[400273461,1767249038305,-881.45,0.00012329,2]
[400273462,1767249038314,-186.0,0.00012659,2]
[400273463,1767249038322,-264.63,0.00013195,2]
[400273464,1767249038335,-500.0,0.00013273,2]
[400273465,1767249038350,-500.0,0.00013273,2]
[400273466,1767249038358,-150.19564112,0.00013273,2]
[400273467,1767249038365,-500.0,0.00013273,2]
[400273468,1767249038372,-199.13796001,0.00013273,2]
[400273469,1767249038378,-303.48839613,0.00013273,2]
[400273470,1767249038385,-500.0,0.00013273,2]
[400273471,1767249038392,-500.0,0.00013273,2]
[400273472,1767249038399,-500.0,0.00013273,2]
[400273473,1767249038407,-500.0,0.00013273,2]
[400273474,1767249038414,-500.0,0.00013273,2]
[400273475,1767249038422,-497.57485249,0.00013273,2]
[400273476,1767249038429,-500.0,0.00013273,2]
[400273477,1767249038437,-510.90139551,0.00013273,2]
[400273478,1767249038444,-500.0,0.00013273,2]
[400273479,1767249038451,-500.0,0.00013273,2]
[400273480,1767249038457,-500.0,0.00013273,2]
[400273481,1767249038465,-204.97300329,0.00013273,2]
[400273482,1767249038472,-1682.55469545,0.0001354,2]
[400273483,1767249038480,-500.0,0.00013698,2]
[400273484,1767249038486,-500.0,0.00013698,2]
[400273485,1767249038493,-500.0,0.00013698,2]
[400273486,1767249038501,-500.0,0.00013698,2]
[400273487,1767249038507,-501.34554409,0.00013698,2]
[400273488,1767249038515,-500.0,0.00013698,2]
[400273489,1767249038522,-530.23109502,0.00013698,2]
[400273490,1767249038529,-634.29682706,0.00013698,2]
[400273491,1767249038535,-500.0,0.00013698,2]
[400273492,1767249038544,-500.0,0.00013698,2]
[400273493,1767249038553,-500.0,0.00013698,2]
[400273494,1767249038563,-500.0,0.00013698,2]
[400273495,1767249038573,-500.0,0.00013698,2]
[400273496,1767249038583,-500.0,0.00013698,2]
[400273497,1767249038593,-294.49990003,0.00013698,2]
[400273498,1767249038602,-15492.5924877,0.00013699,2]
[400273499,1767249038612,-500.0,0.00013699,2]
[400273500,1767249038621,-500.0,0.00013699,2]
[400273501,1767249038631,-504.76855077,0.00013699,2]
[400273502,1767249038640,-150.0,0.00013699,2]
[400273503,1767249038649,-500.0,0.00013699,2]
[400273504,1767249038660,-500.0,0.00013699,2]
[400273505,1767249038670,-500.0,0.00013699,2]
[400273506,1767249038679,-500.0,0.00013699,2]
[400273507,1767249038688,-500.0,0.00013699,2]
[400273508,1767249038698,-457.22674749,0.00013699,2]
[400273509,1767249038707,-159.77203792,0.00013699,2]
[400273510,1767249038717,-500.0,0.00013699,2]
[400273511,1767249038727,-500.0,0.00013699,2]
[400273512,1767249038736,-251.00272433,0.00013699,2]
[400273513,1767249038746,-500.0,0.00013699,2]
[400273514,1767249038755,-500.0,0.00013699,2]
[400273515,1767249038764,-500.87963329,0.00013699,2]
[400273516,1767249038774,-500.0,0.00013699,2]
[400273517,1767249038784,-500.27689491,0.00013699,2]
[400273518,1767249038793,-500.0,0.00013699,2]
[400273519,1767249038802,-500.0,0.00013699,2]
[400273520,1767249038813,-500.0,0.00013699,2]
[400273521,1767249038822,-501.33800671,0.00013699,2]
[400273522,1767249038831,-226.86184291,0.00013699,2]
[400273523,1767249038957,-500.0,0.00013699,2]
[400273524,1767249038968,-500.0,0.00013699,2]
[400273525,1767249038978,-158.33594106,0.00013699,2]
[400273526,1767249038987,-340.15657069,0.00013699,2]
[400273527,1767249038996,-500.50269191,0.00013699,2]
[400273528,1767249039006,-500.41254196,0.00013699,2]
[400273529,1767249039015,-500.0,0.00013699,2]
[400273530,1767249039025,-500.0867866,0.00013699,2]
[400273531,1767249039034,-500.40244192,0.00013699,2]
[400273532,1767249039043,-500.73491636,0.00013699,2]
[400273533,1767249039053,-501.3582173,0.00013699,2]
[400273534,1767249039063,-373.28262423,0.00013699,2]
[400273535,1767249039072,-500.17833478,0.00013699,2]
[400273536,1767249039081,-316.4851046,0.00013699,2]
[400273537,1767249039091,-500.49764939,0.00013699,2]
[400273538,1767249039100,-501.34213841,0.00013699,2]
[400273539,1767249039110,-500.86510493,0.00013699,2]
[400273540,1767249039119,-500.79513169,0.00013699,2]
[400273541,1767249039129,-500.0,0.00013699,2]
[400273542,1767249039139,-524.82836698,0.00013699,2]
[400273543,1767249039148,-500.95516799,0.00013699,2]
[400273544,1767249039157,-534.87876427,0.00013699,2]
[400273545,1767249039167,-500.0,0.00013699,2]
[400273546,1767249039177,-383.99222334,0.00013699,2]
[400273547,1767249039187,-502.90555737,0.00013699,2]
[400273548,1767249039196,-987.40538387,0.00013821,2]
[400273549,1767249039206,-1000.0,0.00013821,2]
[400273550,1767249039215,-1000.0,0.00013821,2]
[400273551,1767249039225,-527.43501459,0.00013821,2]
[400273552,1767249039234,-1000.0,0.00013821,2]
[400273553,1767249039244,-867.16101561,0.00013821,2]
[400273554,1767249039258,-310.3725378,0.00013821,2]
[400273555,1767249039267,-1000.0,0.00013821,2]
[400273556,1767249039277,-1000.0,0.00013821,2]
[400273557,1767249039286,-507.02514153,0.00013821,2]
[400273558,1767249039297,-1000.0,0.00013821,2]
[400273559,1767249039306,-704.62025584,0.00013821,2]
[400273560,1767249039316,-250.0,0.00013838,2]
[400273561,1767249039326,-1000.0,0.00014247,2]
[400273562,1767249039335,-400.0,0.00014247,2]
[400273563,1767249039344,-1004.37283025,0.00014247,2]
[400273564,1767249039354,-1082.59288447,0.00014247,2]
[400273565,1767249039363,-1001.95418441,0.00014247,2]
[400273566,1767249039373,-1001.84835347,0.00014247,2]
[400273567,1767249039383,-1000.0,0.00014247,2]
[400273568,1767249039392,-1005.26747214,0.00014247,2]
[400273569,1767249039402,-160.44722878,0.00014247,2]
[400273570,1767249039411,-1100.08232842,0.00014247,2]
[400273571,1767249039421,-198.34157968,0.00014247,2]
[400273572,1767249039430,-602.586313,0.00014247,2]
[400273573,1767249039440,-502.44886287,0.00014247,2]
[400273574,1767249039449,-1000.0,0.00014247,2]
[400273575,1767249039459,-294.09484686,0.00014279,2]
[400273576,1767249039468,-396.95,0.00014295,2]
[400273577,1767249039478,-387.84322362,0.00014368,2]
[400273578,1767249039487,-1500.0,0.00014368,2]
[400273580,1767249039497,-1501.39987686,0.00014368,2]
[400273581,1767249039506,-218.67284669,0.00014368,2]
[400273582,1767249039515,-470.75353878,0.00014368,2]
[400273583,1767249039524,-1629.14531311,0.00014368,2]
[400273584,1767249039533,-501.18575005,0.00014795,2]
[400273585,1767249039542,-1042.69681858,0.00014795,2]
[400273586,1767249039551,-500.0,0.00014795,2]
[400273587,1767249039561,-52998.81271165,0.00014882,2]
[400273588,1767249039570,-1506.13602634,0.00014916,2]
[400273589,1767249039579,-531.07693925,0.00015,3]
[400273590,1767249039588,-226.32124086,0.00015033,2]
[400273591,1767249039598,-529.27,0.00015394,2]
[400273593,1767249039607,-188.85871201,0.00015946,2]
[400273594,1767249039616,-333.01916482,0.00016279,2]
[400273595,1767249039626,-661.59,0.00016494,2]
[400273596,1767249039636,-250.0,0.0001692,2]
[400273597,1767249039646,-111312.50125264,0.00017,2]
[400273598,1767249039654,-713.92467328,0.00017118,2]
[400273599,1767249039664,-378.13800268,0.00017287,2]
[400273601,1767249039673,-793.9,0.00017593,2]
[400273602,1767249039682,-2133.84706656,0.000176,2]
[400273603,1767249039695,-189.23563791,0.00017971,2]
[400273604,1767249039704,-188.67079587,0.00017971,2]
[400273605,1767249039713,-226.32124086,0.00017971,2]
[400273606,1767249039722,-161574.54161847,0.00018,2]
[400273607,1767249039731,-371.94348279,0.00018279,2]
[400273608,1767249039741,-250.0,0.0001861,2]
[400273609,1767249039751,-250.0,0.0001861,2]
[400273610,1767249039760,-250.0,0.0001861,2]
[400273611,1767249039769,-250.0,0.0001861,2]
[400273612,1767249039778,-250.0,0.0001861,2]
[400273613,1767249039787,-250.0,0.0001861,2]
[400273614,1767249039796,-250.0,0.0001861,2]
[400273615,1767249039806,-250.0,0.0001861,2]
[400273616,1767249039816,-250.0,0.0001861,2]
[400273617,1767249039826,-250.0,0.0001861,2]
[400273618,1767249039835,-250.0,0.0001861,2]
[400273620,1767249039844,-250.0,0.0001861,2]
[400273621,1767249039853,-4777.43011459,0.0001861,2]
[400273623,1767249039863,-926.22,0.00018693,2]
[400273624,1767249039873,-302.96970909,0.000189,2]
[400273625,1767249039883,-32487.58211697,0.00019,2]
[400273626,1767249039891,-1201.191,0.00019,2]
[400273627,1767249039900,-17936.65088939,0.00019,2]
[400273628,1767249039909,-302.96970909,0.00019089,2]
[400273629,1767249039919,-796.7,0.00019178,2]
[400273630,1767249039927,-796.7,0.00019178,2]
[400273631,1767249039936,-796.7,0.00019178,2]
[400273632,1767249039945,-796.7,0.00019178,2]
[400273633,1767249039954,-796.7,0.00019178,2]
[400273634,1767249039964,-796.7,0.00019178,2]
[400273635,1767249039973,-796.7,0.00019178,2]
[400273636,1767249039981,-796.7,0.00019178,2]
[400273637,1767249039990,-796.7,0.00019178,2]
[400273638,1767249039999,-796.7,0.00019178,2]
[400273639,1767249040008,-796.7,0.00019178,2]
[400273640,1767249040018,-796.7,0.00019178,2]
[400273641,1767249040027,-796.7,0.00019178,2]
[400273642,1767249040036,-796.7,0.00019178,2]
[400273643,1767249040045,-796.7,0.00019178,2]
[400273644,1767249040054,-796.7,0.00019178,2]
[400273645,1767249040063,-796.7,0.00019178,2]
[400273646,1767249040072,-796.7,0.00019178,2]
[400273647,1767249040081,-796.7,0.00019178,2]
[400273648,1767249040090,-796.7,0.00019178,2]
[400273649,1767249040099,-796.7,0.00019178,2]
[400273650,1767249040108,-796.7,0.00019178,2]
[400273651,1767249040117,-796.7,0.00019178,2]
[400273652,1767249040127,-796.90033187,0.00019178,2]
[400273653,1767249040136,-166.35,0.000192,2]
[400273654,1767249040145,-302.96970909,0.00019278,2]
[400273655,1767249040154,-6561.6,0.000193,2]
[400273656,1767249040164,-302.96970909,0.00019467,2]
[400273657,1767249040173,-302.96970909,0.00019656,2]
[400273658,1767249040182,-35714.32,0.000197,3]
[400273659,1767249040192,-1058.54,0.00019793,2]
[400273660,1767249040201,-454.45456363,0.00019845,4]
[400273661,1767249040210,-189.04757073,0.00019847,2]
[400273662,1767249040219,-4086.50321384,0.0002,2]
[400273663,1767249040228,-601.57710056,0.0002,2]
[400273664,1767249040237,-71611.0,0.0002,2]
[400273665,1767249040246,-159.78376213,0.0002,2]
[400273666,1767249040259,-569.76630921,0.00020034,4]
[400273667,1767249040269,-421.09067682,0.0002013,2]
[400273668,1767249040278,-410.86780075,0.00020279,2]
[400273669,1767249040287,-150.0,0.00020463,2]
[400273670,1767249040297,-500.0,0.00020463,2]
[400273671,1767249040306,-160.94726979,0.00020463,2]
[400273672,1767249040315,-150.0,0.000206,2]
[400273673,1767249040326,-501.75567666,0.000206,2]
[400273674,1767249040335,-1387.29851785,0.0002061,2]
[400273675,1767249040345,-150.0,0.00020737,2]
[400273676,1767249040354,-155.79,0.000208,2]
[400273677,1767249040365,-150.0,0.00020874,2]
[400273678,1767249040375,-1190.86,0.00020892,2]
[400273679,1767249040385,-256.05139749,0.000209,2]
[400273680,1767249040395,-226.32124086,0.00020909,2]
[400273681,1767249040405,-276.92757595,0.00021,2]
[400273682,1767249040414,-1725.78039166,0.00021,2]
[400273683,1767249040424,-150.0,0.00021011,2]
[400273684,1767249040433,-250.0,0.00021148,2]
[400273685,1767249040443,-14834.8363058,0.00021314,2]
[400273686,1767249040453,-1038.36333157,0.000215,2]
[400273687,1767249040462,-12840.41586562,0.000215,2]
[400273688,1767249040472,-1384.50570096,0.000215,2]
[400273689,1767249040483,-3239.83581211,0.0002178,2]
[400273690,1767249040492,-183.56718446,0.00021781,5]
[400273691,1767249040502,-500.0,0.00021917,2]
[400273692,1767249040512,-301.35369141,0.00021917,2]
[400273693,1767249040521,-500.0,0.00021917,2]
[400273694,1767249040531,-475.26860085,0.00021917,2]
[400273695,1767249040540,-240.60935037,0.00021917,2]
[400273696,1767249040549,-486.85895682,0.00021917,2]
[400273697,1767249040559,-338.54047135,0.00021917,2]
[400273698,1767249040569,-297.21992504,0.00021917,2]
[400273699,1767249040578,-160.09792167,0.00021917,2]
[400273700,1767249040587,-285.61588297,0.00021917,2]
[400273701,1767249040597,-495.66542873,0.00021917,2]
[400273702,1767249040607,-251.6135754,0.00021917,2]
[400273703,1767249040616,-273.58985288,0.00021917,2]
[400273704,1767249040626,-396.59409814,0.00021917,2]
[400273705,1767249040635,-242.63416874,0.00021917,2]
[400273706,1767249040645,-248.32454399,0.00021917,2]
[400273707,1767249040654,-187.13995888,0.00021917,2]
[400273708,1767249040664,-554.27993055,0.00021917,2]
[400273709,1767249040673,-500.0,0.00021917,2]
[400273710,1767249040683,-260.47739591,0.00021917,2]
[400273711,1767249040692,-500.0,0.00021917,2]
[400273712,1767249040702,-452.48670495,0.00021917,2]
[400273713,1767249040711,-459.76933981,0.00021917,2]
[400273714,1767249040720,-318.08002056,0.00021917,2]
[400273715,1767249040729,-249.54861741,0.00021917,2]
[400273716,1767249040739,-463.59663672,0.00021917,2]
[400273717,1767249040748,-500.0,0.00021917,2]
[400273718,1767249040757,-500.70495585,0.00021917,2]
[400273719,1767249040767,-248.06564234,0.00021917,2]
[400273720,1767249040777,-153.64364551,0.00021917,2]
[400273721,1767249040787,-500.0,0.00021917,2]
[400273722,1767249040796,-492.64591151,0.00021917,2]
[400273723,1767249040806,-500.0,0.00021917,2]
[400273724,1767249040816,-504.04792974,0.00021917,2]
[400273725,1767249040825,-500.80685371,0.00021917,2]
[400273726,1767249040835,-518.4359387,0.00021917,2]
[400273727,1767249040844,-184.52928121,0.00021917,2]
[400273728,1767249040853,-493.13106988,0.00021917,2]
[400273729,1767249040862,-371.28066561,0.00021917,2]
[400273730,1767249040872,-179.05199102,0.00021917,2]
[400273731,1767249040882,-275.89894745,0.00021917,2]
[400273732,1767249040891,-501.87004615,0.00021917,2]
[400273733,1767249040901,-408.88764629,0.00021917,2]
[400273734,1767249040910,-401.13092811,0.00021917,2]
[400273735,1767249040919,-523.31407645,0.00021917,2]
[400273736,1767249040929,-280.51078122,0.00021917,2]
[400273737,1767249040938,-518.30497019,0.00021917,2]
[400273738,1767249040948,-568.74908279,0.00021917,2]
[400273739,1767249040957,-272.63568272,0.00021917,2]
[400273740,1767249040967,-516.60053406,0.00021917,2]
[400273741,1767249040976,-552.4053218,0.00021917,2]
[400273742,1767249040986,-502.87281285,0.00021917,2]
[400273743,1767249040995,-529.9751576,0.00021917,2]
[400273744,1767249041004,-497.44272827,0.00021917,2]
[400273745,1767249041014,-458.34960511,0.00021917,2]
[400273746,1767249041023,-350.29751082,0.00021917,2]
[400273747,1767249041032,-1323.17,0.00021992,2]
[400273748,1767249041041,-160.14,0.00022,2]
[400273749,1767249041051,-154.69,0.00022,7]
[400273750,1767249041060,-510.76405054,0.00022191,2]
[400273751,1767249041070,-180.94572281,0.00022191,2]
[400273752,1767249041078,-500.0,0.00022191,2]
[400273753,1767249041088,-500.0,0.00022191,2]
[400273754,1767249041097,-500.0,0.00022191,2]
[400273755,1767249041106,-449.79211872,0.00022279,2]
[400273756,1767249041116,-151.0,0.000224,8]
[400273757,1767249041126,-500.0,0.00022465,2]
[400273758,1767249041135,-561.17575434,0.00022465,2]
[400273759,1767249041145,-500.0,0.00022465,2]
[400273760,1767249041154,-1031.90217382,0.000225,2]
[400273761,1767249041163,-502.95914961,0.00022739,2]
[400273762,1767249041173,-500.0,0.00022739,2]
[400273763,1767249041183,-713.92467328,0.00023736,2]
[400273764,1767249041192,-189.42487355,0.00023848,2]
[400273765,1767249041202,-188.85946666,0.00023848,2]
[400273766,1767249041211,-226.5475621,0.00023848,2]
[400273767,1767249041221,-151.0,0.000239,5]
[400273768,1767249041230,-170.0,0.00023973,11]
[400273769,1767249041240,-178741.93084118,0.00024142,2]
[400273770,1767249041251,-488.71643669,0.00024279,2]
[400273771,1767249041262,-35714.28,0.0002435,3]
[400273772,1767249041272,-147634.5545045,0.0002465,2]
[400273773,1767249041281,-513.71639582,0.0002465,2]
[400273774,1767249041291,-16819.15259793,0.00024774,2]
[400273775,1767249041301,-77749.7687526,0.000249,2]
[400273776,1767249041311,-152.81821811,0.000249,2]
[400273777,1767249041320,-152.81821803,0.000249,2]
[400273778,1767249041330,-152.81821803,0.000249,2]
[400273779,1767249041339,-152.81821803,0.000249,2]
[400273780,1767249041349,-152.81821803,0.000249,2]
[400273781,1767249041359,-151.0,0.000249,7]
[400273782,1767249041369,-152.81821803,0.00025089,2]
[400273783,1767249041378,-6561.6,0.000253,2]
[400273784,1767249041388,-2000.0,0.00025513,7]
[400273785,1767249041398,-56121.72687762,0.00026,30]
[400273786,1767249041408,-151.0,0.00026,7]
[400273787,1767249041418,-152.81821803,0.00026127,2]
[400273788,1767249041428,-527.64075465,0.00026279,2]
[400273789,1767249041437,-188.0,0.00026712,21]
[400273790,1767249041447,-152.81821803,0.00027164,2]
[400273791,1767249041457,-12674.23093386,0.0002739,2]
[400273792,1767249041467,-181.29593,0.00027397,7]
[400273793,1767249041477,-1225.661318,0.00027397,7]
[400273794,1767249041486,-1225.661318,0.00027397,7]
[400273795,1767249041496,-1225.661318,0.00027397,7]
[400273796,1767249041506,-1225.661318,0.00027397,7]
[400273797,1767249041515,-151.0,0.00027397,7]
[400273798,1767249041525,-151.0,0.00027397,7]
[400273799,1767249041535,-151.0,0.00027397,7]
[400273800,1767249041545,-300.325623,0.00027397,7]
[400273801,1767249041555,-158.480917,0.00027397,7]
[400273802,1767249041565,-158.480917,0.00027397,7]
[400273803,1767249041575,-158.480917,0.00027397,7]
[400273804,1767249041584,-151.0,0.00027397,7]
[400273805,1767249041594,-158.480917,0.00027397,7]
[400273806,1767249041604,-151.0,0.00027397,7]
[400273807,1767249041613,-566.208767,0.00027397,7]
[400273808,1767249041623,-566.208767,0.00027397,7]
[400273809,1767249041633,-566.208767,0.00027397,7]
[400273810,1767249041642,-267.120865,0.00027397,7]
[400273811,1767249041651,-566.208767,0.00027397,7]
[400273812,1767249041662,-150.0,0.00027397,5]
[400273813,1767249041672,-151.0,0.000279,16]
[400273814,1767249041682,-250.0,0.00027945,5]
[400273815,1767249041691,-1041.66666667,0.00028,3]
[400273816,1767249041701,-1200.0,0.00028038,7]
[400273817,1767249041710,-1200.0,0.00028099,7]
[400273818,1767249041719,-1200.0,0.000281,7]
[400273819,1767249041729,-1200.0,0.00028178,7]
[400273820,1767249041739,-1200.0,0.00028195,7]
[400273821,1767249041748,-152.81821803,0.00028202,2]
[400273822,1767249041758,-1200.0,0.00028234,7]
[400273823,1767249041867,-566.56507262,0.00028279,2]
[400273824,1767249041877,-2000.0,0.00028284,7]
[400273825,1767249041888,-2000.0,0.00028293,7]
[400273826,1767249041898,-2000.0,0.00028302,7]
[400273827,1767249041908,-2000.0,0.0002831,7]
[400273828,1767249041917,-2000.0,0.00028319,7]
[400273829,1767249041927,-2000.0,0.00028328,7]
[400273830,1767249041936,-2000.0,0.00028337,7]
[400273831,1767249041946,-2000.0,0.00028346,7]
[400273832,1767249041955,-2000.0,0.00028354,7]
[400273833,1767249041965,-1200.0,0.0002836,7]
[400273834,1767249041975,-2000.0,0.00028363,7]
[400273835,1767249041984,-2000.0,0.00028372,7]
[400273836,1767249041994,-2000.0,0.00028381,7]
[400273837,1767249042004,-2000.0,0.0002839,7]
[400273838,1767249042013,-2000.0,0.00028398,7]
[400273839,1767249042023,-2000.0,0.00028407,7]
[400273840,1767249042033,-2000.0,0.0002841,7]
[400273841,1767249042043,-2000.0,0.00028416,7]
[400273842,1767249042053,-350.0,0.00028493,5]
[400273843,1767249042063,-1158.95011257,0.000285,7]
[400273844,1767249042073,-1041.66666667,0.00028526,2]
[400273845,1767249042082,-1608.26373009,0.000287,2]
[400273846,1767249042091,-1200.0,0.00028703,7]
[400273847,1767249042101,-1200.0,0.00028714,7]
[400273848,1767249042110,-19245.50339652,0.0002876,2]
[400273849,1767249042120,-28355.36255843,0.0002876,20]
[400273850,1767249042130,-2028.77969745,0.0002876,5]
[400273851,1767249042139,-19131.10080134,0.0002876,2]
[400273852,1767249042148,-5770.77337415,0.0002876,30]
[400273853,1767249042158,-172.36051064,0.000288,7]
[400273854,1767249042167,-152.65,0.000288,2]
[400273855,1767249042177,-500.0,0.00028819,7]
[400273856,1767249042187,-152.65,0.000289,2]
[400273857,1767249042198,-151.0,0.00028924,3]
[400273858,1767249042207,-1200.0,0.00028933,7]
[400273859,1767249042217,-1200.0,0.0002898,7]
[400273860,1767249042227,-500.0,0.0002898,7]
[400273861,1767249042236,-1200.0,0.00028987,7]
[400273862,1767249042246,-1041.66666667,0.00029,10]
[400273863,1767249042263,-889.65355928,0.00029,2]
[400273864,1767249042272,-2406.8053389,0.00029,10]
[400273865,1767249042282,-500.0,0.00029041,7]
[400273866,1767249042292,-450.0,0.00029041,5]
[400273867,1767249042304,-500.0,0.0002906,7]
[400273868,1767249042313,-1200.0,0.00029064,7]
[400273869,1767249042322,-500.0,0.00029089,7]
[400273870,1767249042331,-152.65,0.000291,2]
[400273871,1767249042341,-155.79,0.000293,14]
[400273872,1767249042350,-154.69,0.000293,7]
[400273873,1767249042359,-152.65,0.000293,2]
[400273874,1767249042369,-152.65,0.000294,2]
[400273875,1767249042379,-175.0,0.00029452,34]
[400273876,1767249042390,-365.55215583,0.00029589,5]
[400273877,1767249042400,-152.65,0.000296,2]
[400273878,1767249042409,-1200.0,0.00029619,7]
[400273879,1767249042419,-1608.26373007,0.0002964,2]
[400273880,1767249042428,-228.57404865,0.000298,11]
[400273881,1767249042437,-6561.6,0.000298,2]
[400273882,1767249042447,-152.65,0.000298,2]
[400273883,1767249042458,-188.11386458,0.00029813,4]
[400273884,1767249042467,-1200.0,0.00029817,7]
[400273885,1767249042477,-1200.38646137,0.0003,2]
[400273886,1767249042486,-10190.99658578,0.0003,7]
[400273887,1767249042495,-152.65,0.0003,2]
[400273888,1767249042505,-605.48939059,0.00030279,2]
[400273889,1767249042515,-1200.0,0.00030294,7]
[400273890,1767249042524,-1200.0,0.00030348,7]
[400273891,1767249042533,-713.92467328,0.00030354,2]
[400273892,1767249042543,-1200.0,0.00030408,7]
[400273893,1767249042552,-327.466,0.00030522,26]
[400273894,1767249042562,-1608.26373007,0.00030581,2]
[400273895,1767249042571,-151.0,0.00030602,4]
[400273896,1767249042580,-1200.0,0.00030707,7]
[400273897,1767249042590,-500.0,0.00030842,7]
[400273898,1767249042600,-574.69,0.00030958,30]
[400273899,1767249042609,-1200.0,0.00030968,7]
[400273900,1767249042619,-1200.0,0.00030977,7]
[400273901,1767249042628,-305.93499833,0.0003099,2]
[400273902,1767249042638,-182.69083928,0.00031,120]
[400273903,1767249042647,-194.43091559,0.00031,120]
[400273904,1767249042656,-200.80728227,0.00031,120]
[400273905,1767249042666,-161.57990308,0.00031,120]
[400273906,1767249042675,-163.54107835,0.00031,120]
[400273907,1767249042684,-181.86492436,0.00031,120]
[400273908,1767249042694,-184.3824898,0.00031,120]
[400273909,1767249042703,-208.62713506,0.00031,120]
[400273910,1767249042713,-175.34818034,0.00031,120]
[400273911,1767249042722,-1063.11433124,0.00031,120]
[400273912,1767249042731,-180.65011172,0.00031,120]
[400273913,1767249042740,-183.53194587,0.00031,120]
[400273914,1767249042749,-183.86417209,0.00031,120]
[400273915,1767249042758,-161.34008523,0.00031,120]
[400273916,1767249042768,-162.59864532,0.00031,120]
[400273917,1767249042777,-9327.98411535,0.00031,120]
[400273918,1767249042786,-1022.67877753,0.00031,7]
[400273919,1767249042795,-4884.59163205,0.0003112,2]
[400273920,1767249042805,-992.69988636,0.000313,2]
[400273921,1767249042814,-2000.0,0.00031308,7]
[400273922,1767249042823,-1200.0,0.00031402,7]
[400273923,1767249042832,-6561.6,0.000315,2]
[400273924,1767249042842,-574.69,0.00031506,31]
[400273925,1767249042851,-263.8553107,0.00031506,120]
[400273926,1767249042860,-1608.26373007,0.00031521,2]
[400273927,1767249042870,-1200.0,0.00031583,7]
[400273928,1767249042879,-35714.28,0.000317,7]
[400273929,1767249042889,-1200.0,0.00031716,7]
[400273930,1767249042899,-500.0,0.00031754,7]
[400273931,1767249042908,-1200.0,0.00031798,7]
[400273932,1767249042918,-1200.0,0.00031864,7]
[400273933,1767249042927,-274.80124425,0.00031893,7]
[400273934,1767249042936,-182.69083928,0.000319,120]
[400273935,1767249042945,-194.43091559,0.000319,120]
[400273936,1767249042955,-200.80728227,0.000319,120]
[400273937,1767249042964,-161.57990308,0.000319,120]
[400273938,1767249042973,-163.54107835,0.000319,120]
[400273939,1767249042982,-181.86492436,0.000319,120]
[400273940,1767249042992,-208.62713506,0.000319,120]
[400273941,1767249043001,-1063.11433124,0.000319,120]
[400273942,1767249043011,-183.86417209,0.000319,120]
[400273943,1767249043020,-162.59864532,0.000319,120]
[400273944,1767249043030,-32692.16587349,0.000319,2]
[400273945,1767249043040,-26086.74604382,0.00032,120]
[400273946,1767249043049,-26690.05505472,0.00032,120]
[400273947,1767249043059,-1018.0,0.00032,7]
[400273948,1767249043068,-158.480917,0.00032,31]
[400273949,1767249043078,-158.480917,0.00032,31]